Cogmind - Beta 16 @@@ ROGUE MODE // 2025.10.26 @ 12:05:17 Player: KeKe Result: Destroyed by QR-FKH(R) with Subdweller Shrapnel Launcher Performance ------------- Evolutions (0) 0 Regions Visited (2) 400 Robots Destroyed (27) 135 Value Destroyed (575) 575 Prototype IDs (0) 0 Alien Tech Used (0) 0 Bonus (-44) -44 TOTAL SCORE: 1066 Bonus ------- Friendly Fire -44 Cogmind --------- Core Integrity 0/250 Matter 219/300 Energy 250/250 System Corruption 0% Temperature Cool (0) Movement Rolling (131) Ox3 Location -10/Subcaves Parts ------- > --- POWER (1) -------- Ion Engine > --- PROPULSION (2) --- Wheel Subdweller Monowheel > --- UTILITY (2) ------ Huge Storage Unit Hardened Light Armor Plating > --- WEAPON (2) ------- Subdweller Machine Gun Mini Grenade Launcher > --- INVENTORY (25) --- Light Ion Engine Makeshift Power Source Subdweller Monowheel Subdweller Monowheel Sensor Array Signal Interpreter Seismic Detector Hardened Light Armor Plating Hardened Light Armor Plating Riot Gun Powered Cannon Assault Rifle Assault Rifle Assault Rifle Battle Rifle Battle Rifle Subdweller Machine Gun Mini Grenade Launcher Mini Grenade Launcher Hammer Peak State ------------ > --- POWER ------------ Makeshift Power Source > --- PROPULSION ------- Wheel Subdweller Monowheel > --- UTILITY ---------- Huge Storage Unit Hardened Light Armor Plating > --- WEAPON ----------- Subdweller Machine Gun Mini Grenade Launcher > --- INVENTORY -------- Ion Engine Light Ion Engine Sensor Array Signal Interpreter Seismic Detector Hardened Light Armor Plating Hardened Light Armor Plating Riot Gun Powered Cannon Assault Rifle Assault Rifle Assault Rifle Battle Rifle Battle Rifle Subdweller Machine Gun Mini Grenade Launcher Mini Grenade Launcher Hammer [Rating: 18] Favorites ----------- Power Light Ion Engine Engine Light Ion Engine Propulsion Wheel Leg Aluminum Leg Wheel Wheel Utility Huge Storage Unit Device Seismic Detector Storage Huge Storage Unit Protection Hardened Light Armor Plating Weapon Assault Rifle Energy Gun Medium Laser Ballistic Gun Assault Rifle Launcher Mini Grenade Launcher Special Weapon Mining Laser Impact Weapon Hammer Build | -11 -10 -10 ------- Run | Yrd Mat Sub Slots Evolved . | . . . Power . | . . . Propulsion . | . . . Utility . | . . . Weapon . | . . . Parts Attached 23 | 3 9 11 Power 2 | . . 2 Engine 2 | . . 2 Core . | . . . Reactor . | . . . Propulsion 5 | 2 . 3 Treads . | . . . Leg . | . . . Wheel 5 | 2 . 3 Hover . | . . . Flight . | . . . Utility 4 | 1 2 1 Device 1 | 1 . . Storage 1 | . 1 . Processor . | . . . Hackware . | . . . Protection 2 | . 1 1 Artifact . | . . . Weapon 12 | . 7 5 Energy Gun 1 | . 1 . Energy Cannon . | . . . Ballistic Gun 5 | . 3 2 Ballistic Cannon . | . . . Launcher 4 | . 2 2 Special Weapon 1 | . 1 . Impact Weapon 1 | . . 1 Slashing Weapon . | . . . Piercing Weapon . | . . . Special Melee Weapon . | . . . Unidentified Prototypes . | . . . Parts Lost 4 | . . 4 Power . | . . . Propulsion 3 | . . 3 Utility . | . . . Weapon 1 | . . 1 Highest Loss Streak 4 | . . 4 To Critical Strikes . | . . . Average Backups 13 | 3 10 16 Power 1 | 1 1 1 Propulsion 1 | 1 2 1 Utility 4 | . 3 5 Weapon 6 | . 3 7 Tool/Special . | . . . Unused Backups 15 | . 3 12 Power 2 | . . 2 Propulsion 2 | . . 2 Utility 6 | . 2 4 Weapon 5 | . 1 4 Tool/Special . | . . . Average Slot Usage (%) 99 | . 100 99 Engine 14 | . 14 14 Wheel 27 | . 28 27 Device 3 | . 10 . Storage 14 | . 14 14 Protection 10 | . 3 14 Energy Gun 1 | . 3 . Ballistic Gun 19 | . 23 17 Launcher 4 | . . 6 Impact Weapon 2 | . . 4 Peak Build Rating 18 | 7 10 18 Average Rating 11 | 6 8 13 On Entrance 7 | 6 7 10 Avg Prop Armor Cover (%) . | . . . Naked Turns . | . . . Heaviest Build 95 | 13 92 95 Greatest Support 30 | 26 26 30 Greatest Overweight (x) 9 | . 3 9 Average Overweight (x) 2 | . 1 3 Largest Inventory Capacity 25 | 8 25 25 Average Capacity 22 | 8 20 25 Most Carried 21 | 6 16 21 Average Carried 14 | 2 10 16 Final Capacity 25 | 8 25 25 Final Carried 21 | 4 14 21 Class Distribution -------------------- 100% | Mutant Dominant Class ---------------- Mutant | -10/Materials Mutant | -10/Subcaves Resources | -11 -10 -10 ----------- Run | Yrd Mat Sub Matter Collected 565 | 275 80 210 Remotely . | . . . Salvage Created 552 | 152 137 263 Parts 50 | 9 17 24 Haulers Intercepted . | . . . Recyclers Shooed 1 | 1 . . Parts Field Recycled . | . . . Retrieved Matter . | . . . Parts Self-Destructed 10 | . . 10 Prevented . | . . . Parts Restored . | . . . Kills | -11 -10 -10 ------- Run | Yrd Mat Sub Combat Hostiles Destroyed 21 | . 8 13 Guns 2 | . 2 . AOE 19 | . 6 13 Classes Destroyed 7 | 2 3 2 Builder 2 | . 2 . Tunneler 3 | 3 . . Recycler 1 | 1 . . Swarmer 10 | . 6 4 Grunt 2 | . 2 . Subdweller 9 | . . 9 Scientist 1 | . . 1 Best Kill Streak 4 | 2 4 4 Combat Bots Only 4 | . 3 4 Max Kills in Single Turn 3 | 1 2 3 Gunslinging . | . . . Exploded 3 | . 2 3 Melee . | . . . Uniques/NPCs Destroyed . | . . . Combat | -11 -10 -10 -------- Run | Yrd Mat Sub Hostile Shots Fired 61 | . 25 36 Missed 25 | . 11 14 Hits 36 | . 14 22 Projectile 36 | . 14 22 AOE 1 | . . 1 Damage Taken 946 | . 199 747 Core 251 | . 72 179 Absorbed by Shields . | . . . Core Remaining (%) 100 | 100 . . Volleys Fired 54 | 15 19 20 Largest 2 | 2 2 2 Hottest 100 | 60 100 100 Shots Fired 85 | 30 27 28 Gun 59 | 30 16 13 Cannon . | . . . Launcher 22 | . 9 13 Special 4 | . 2 2 Kinetic 44 | 15 16 13 Thermal 4 | . 2 2 Explosive 22 | . 9 13 Electromagnetic 15 | 15 . . Robot Hit Streak 11 | 11 6 6 Robot Miss Streak 3 | 2 3 3 Penetration Max . | . . . Secondary Targets . | . . . Shots Hit Robots 44 | 17 10 17 Core Hits 40 | 5 18 17 Critical Kills . | . . . Critical Parts Destroyed . | . . . Critical Strikes 1 | 1 . . Corrupt 1 | 1 . . Melee Attacks 29 | . . 29 Impact 29 | . . 29 Slashing . | . . . Piercing . | . . . Sneak Attacks . | . . . Combat Hostiles . | . . . Follow-up Attacks . | . . . Damage Inflicted 2432 | 252 521 1659 Guns 506 | 252 120 134 Cannons . | . . . Explosions 1902 | . 401 1501 Melee . | . . . Ramming . | . . . Kinetic 356 | 102 120 134 Thermal 24 | . . 24 Explosive 1902 | . 401 1501 Electromagnetic 150 | 150 . . Impact . | . . . Slashing . | . . . Piercing . | . . . Highest Corruption . | . . . Average Corruption . | . . . Corruption Purged . | . . . Corruption Blocked . | . . . Overload Shots . | . . . Overflow Damage 51 | . 24 27 Projectiles . | . . . Explosions 51 | . 24 27 Melee . | . . . Knockbacks . | . . . Impact . | . . . Kinetic . | . . . Secondary . | . . . Self-Inflicted Damage 185 | . 62 123 Shots 6 | . 2 4 Rammed . | . . . Targets Rammed . | . . . Kicked . | . . . Crushed . | . . . Highest Temperature 40 | . 40 8 Average Temperature 18 | . 22 5 Received Heat Transfer 105 | . 6 99 Siege Activations . | . . . Martial Activations . | . . . Shielding Activations . | . . . Robots Disrupted . | . . . Combat Hostiles . | . . . Robots Corrupted . | . . . Combat Hostiles . | . . . Parts Fried 2 | 2 . . Impact Corruptions . | . . . Robots Melted . | . . . Combat Hostiles . | . . . Parts Melted . | . . . Heat Transferred 50 | . . 50 Parts Sabotaged . | . . . Parts Stolen . | . . . Parts Stripped . | . . . Power Chain Reactions . | . . . Alert | -11 -10 -10 ------- Run | Yrd Mat Sub Maximum Alert Level . | . . . Low Security (%) 100 | 100 100 . Level 1 . | . . . Level 2 . | . . . Level 3 . | . . . Level 4 . | . . . Level 5 . | . . . High Security . | . . . Max Security . | . . . Peak Influence 132 | 5 132 . Initial 3 | . 3 . Average 36 | 2 41 . Influence Increases 361 | 20 261 80 Destroy 0b10 Robot/C 240 | . 160 80 Destroy 0b10 Robot/NC 30 | 20 10 . Destroy Leader 20 | . 20 . Successful Hack 9 | . 9 . Disable Machine 15 | . 15 . Destroy Structure 47 | . 47 . Influence Decreases 361 | 15 190 156 Entered New Map 39 | . 2 37 Time Decay 322 | 15 188 119 Squads Dispatched . | . . . Investigation . | . . . Extermination . | . . . Reinforcement . | . . . Assault . | . . . Garrison . | . . . Intercept . | . . . Searches Triggered . | . . . Construction Impeded . | . . . Haulers Reinforced . | . . . Active Scanning Responses . | . . . Cargo Convoy Interrupts . | . . . Stealth | -11 -10 -10 --------- Run | Yrd Mat Sub Distress Signals . | . . . Communications Jammed . | . . . Distress Signals . | . . . Times Spotted 25 | . 12 13 Peak Tracking Total 5 | . 5 4 Tactical Retreats . | . . . Traps | -11 -10 -10 ------- Run | Yrd Mat Sub Traps Triggered 4 | . 1 3 Indirectly . | . . . Trap Hack Attempts . | . . . Triggered . | . . . Disarmed . | . . . Reprogrammed . | . . . Reused . | . . . Traps Extracted . | . . . Installed . | . . . Triggered . | . . . Machines | -11 -10 -10 ---------- Run | Yrd Mat Sub Machines Disabled 1 | . 1 . Max in Single Turn 1 | . 1 . Machines Repaired . | . . . Machines Dismantled . | . . . Machines Sabotaged . | . . . Overloaded Fab Kills . | . . . Hacking | -11 -10 -10 --------- Run | Yrd Mat Sub Machines Accessed 5 | . 5 . Terminals 3 | . 3 . Fabricators . | . . . Repair Stations . | . . . Recycling Units 2 | . 2 . Scanalyzers . | . . . Garrison Access . | . . . Total Hacks 13 | . 13 . Successful 6 | . 6 . Failed 7 | . 7 . Catastrophic 1 | . 1 . Database Lockouts . | . . . Manual 9 | . 9 . Terminals 8 | . 8 . Fabricators . | . . . Repair Stations . | . . . Recycling Units 5 | . 5 . Scanalyzers . | . . . Garrison Access . | . . . Terminal Hacks 1 | . 1 . Part Schematic 1 | . 1 . Fabricator Hacks . | . . . Repair Station Hacks . | . . . Recycling Unit Hacks 3 | . 3 . Process 1 | . 1 . Report Inventory 1 | . 1 . Retrieve Matter 1 | . 1 . Scanalyzer . | . . . Garrison Access Hacks . | . . . Unauthorized Hacks 2 | . 2 . Terminals 2 | . 2 . Botnet 2 | . 2 . Fabricators . | . . . Repair Stations . | . . . Recycling Units . | . . . Scanalyzers . | . . . Garrison Access . | . . . Data Cores Recovered . | . . . Used . | . . . Hacking Detections 5 | . 5 . Full Trace Events . | . . . Feedback Events . | . . . Feedback Blocked . | . . . Robot Schematics Acquired . | . . . Robots Built . | . . . Authchips . | . . . Time . | . . . Total Robot Build Rating . | . . . Part Schematics Acquired 1 | . 1 . Parts Built . | . . . Authchips . | . . . Time . | . . . Total Part Build Rating . | . . . Part Studies Acquired . | . . . Parts Repaired . | . . . Time . | . . . Parts Recycled . | . . . Recycled Matter 170 | . 170 . Retrieved Matter 170 | . 170 . Retrieved Components . | . . . Parts Scanalyzed . | . . . Part Schematics Acquired . | . . . Parts Damaged . | . . . Bothacking | -11 -10 -10 ------------ Run | Yrd Mat Sub Used RIF Installer . | . . . Robots Hacked . | . . . Non-combat . | . . . Combat . | . . . Robot Hacks Applied . | . . . Relay Couplers Released . | . . . Fabnet Peak Effective % . | . . . Robots Rewired . | . . . Allies Hacked . | . . . Hacks Repelled . | . . . Allies | -11 -10 -10 -------- Run | Yrd Mat Sub Total Allies . | . . . Largest Group . | . . . Highest-Rated Group . | . . . Highest-Rated Ally . | . . . Total Orders . | . . . Ally Attacks . | . . . Total Damage . | . . . Kills . | . . . Allies Corrupted . | . . . Allies Melted . | . . . Intel | -11 -10 -10 ------- Run | Yrd Mat Sub Active Infowar (turns) 486 | 7 479 . Seismic 486 | 7 479 . Robot Analysis Total . | . . . Derelict Logs Recovered 2 | . . 2 Drone Launches . | . . . Drone Recoveries . | . . . Exploration | -11 -10 -10 ------------- Run | Yrd Mat Sub Turns Passed 2164 | 96 627 1441 Spaces Moved 1364 | 36 395 933 Core . | . . . Treads . | . . . Legs . | . . . Wheels 1364 | 36 395 933 Hover . | . . . Flight . | . . . Fastest Speed 90 | 90 90 131 Average Speed 129 | 90 115 136 Slowest Speed 215 | 90 135 215 Overloaded Moves . | . . . Propulsion Burnouts . | . . . Robots Hopped . | . . . Potential Cave-ins . | . . . Cave-ins Triggered . | . . . Exploration Rate (%) 46 | 3 81 55 Regions Visited 2 Branch Regions 1 Pre-discovered Areas 1 | . . 1 Known Exits Taken . | . . . Unknown Exits Taken 2 | 1 1 . Scrap Searched 1 | . . 1 Spaces Dug 9 | . . 9 Terrain Destroyed 153 | . 62 91 Melee 9 | . . 9 Projectile . | . . . AOE 144 | . 62 82 Terrain Rammed . | . . . Walls Destroyed . | . . . Machines Disabled . | . . . Actions | -11 -10 -10 --------- Run | Yrd Mat Sub Total 1620 | 71 533 1016 Wait 112 | 10 92 10 Move 1362 | 35 394 933 Hop . | . . . Pick Up 24 | 3 13 8 Fast Attach 3 | 1 1 1 Attach 5 | 2 . 3 Detach . | . . . Swap 20 | . 9 11 Drop 11 | 5 5 1 Fire 54 | 15 19 20 Melee 29 | . . 29 Ram . | . . . Kick . | . . . Crush . | . . . Escape Stasis . | . . . Rewire . | . . . Trap . | . . . Miscellaneous . | . . . Route ------- -11/Scrapyard -10/Materials (discovered 4 exits: [*Mat x2] / [*Min] / [*Sub]) -10/Subcaves (discovered 1 exit: [*Mat]) History --------- Turn | Location | Event 12 | -11/Scrapyard | Discovered new exit (range 2) 97 | -11/Scrapyard | Entered Materials 229 | -10/Materials | Discovered new exit (range 16) 302 | -10/Materials | Build established: Mutant 331 | -10/Materials | Discovered new exit (range 15) 509 | -10/Materials | Discovered new exit (range 14) 711 | -10/Materials | Discovered new exit (range 7) 724 | -10/Materials | Entered Subcaves 725 | -10/Subcaves | Approached by a straggling Scientist 1025 | -10/Subcaves | Learned Materials terminal intel 1104 | -10/Subcaves | Learned location of Zion (-6) 1104 | -10/Subcaves | Met a Zionite searching for "candidates" 1165 | -10/Subcaves | Shifting Twisted Machinery released Sub. Machine Gun 1168 | -10/Subcaves | Shifting Twisted Machinery released Mak. Power Source 1412 | -10/Subcaves | Learned Materials security intel 1543 | -10/Subcaves | A Subdweller sparked back to life 1543 | -10/Subcaves | A Subdweller sparked back to life 1543 | -10/Subcaves | A Subdweller sparked back to life 1550 | -10/Subcaves | Core integrity fell below 50% 1564 | -10/Subcaves | Found Prototype Energy Cannon 1583 | -10/Subcaves | Lost 4 parts (3n1w) 1609 | -10/Subcaves | Shifting Twisted Machinery released Sub. Beam Cannon 1619 | -10/Subcaves | Shifting Twisted Machinery released Sub. Monowheel 1684 | -10/Subcaves | A swath of the cavern ceiling suddenly collapsed 1945 | -10/Subcaves | Discovered new exit (range 5) 2077 | -10/Subcaves | Core integrity fell below 20% 2165 | -10/Subcaves | Destroyed by QR-FKH(R) with Subdweller Shrapnel Launcher Last Messages --------------- 02010_ Subatomizers dissect the Sub. Monowheel. 02012_ WH-ZUH(R) destroyed. 02020_ Acquired 3 matter. 02024_ Acquired Sub. Monowheel. 02029_ Acquired 36 matter. 02040_ Subatomizers dissect the Sub. Laser. 02082_ Destroyed Scrap Shield. 02085_ Destroyed Sub. Monowheel. 02085_ Destroyed Scrap Shield. 02086_ The unstable cave ceiling collapses. GQ-JE7(R) emerges from concealment. 02088_ Destroyed Sub. Optics. 02088_ TA-18P(R) destroyed. 02088_ GQ-JE7(R) destroyed. 02088_ ZK-OOP(R) destroyed. 02091_ The unstable cave ceiling collapses. 02099_ Acquired 9 matter. 02101_ Acquired 25 matter. 02103_ Acquired Sub. Monowheel. 02121_ Acquired 36 matter. Map ----- +----------------------------------------------------+ | ?????????????????????????????????????????????????? | | ?????????????????????????????????????????????????? | | ?????????????????????????????????????????????????? | | ?????????????????????????????????????????????????? | | ?????????????????????????????????????????????????? | | ?????????????????????????????????????????????????? | | ?????????????????????????????????????????????????? | | ?????????????????????????????????????????????????? | | ?????????????????????????????????????????????????? | | ?????????????????????????????????????????????????? | | ?????????????????????????????????????????????????? | | ?????????????????????????????????????????????????? | | ?????????????????????????"???????????????????????? | | ?????????????????????????"""?????????????????????? | | ????????????????????????? ""?????????????????????? | | ????????????????????????? "?????????????????????? | | ????????????????????????# ?????????????????????? | | ???????????????????????? #?????????????????????? | | ????????????????????????# ?????????????????????? | | ????????????????????????# ##????????????????????? | | ????????????????????????# ?????????????????????? | | ????????????????????????# #?????????????????????? | | ???????????????????##??## #?????????????????????? | | ??????????????????## ### ##????????????????????? | | ?????????????????## """ #????????????????????? | | ?????????????????# " @ #????????????????????? | | ???????????? " ### #????????????????????? | | ???????????# " #?????#??????????????? | | ????????????# """ R ## #????? ###???????????? | | ?????????????#? """" ??###????? ##??????????? | | ????????????????"### ##????????? ##?????????? | | ??????????????? ""## #??###???? #?????????? | | ??????????????? """"" #??# ####? #?????????? | | ??????????????# ## # ##?# ## ##????????? | | ??????????????????### ### ?????????? | | ??????????????????## ##?????????????? | | ??????????????????# #?????????????? | | ??????????????????# ## ### ##????????????? | | ??????????????????# #####?## % ####?#??? ##? | | ??????????????????# #?????## # # # #? | | ??????????????????# ##?????# #? | | ??????????????????##??????# ## #? | | ????????????????????????######## ####### ?? | | ????????????????????##### #???# #???????????? | | ?????????????????#### ##??# #???????????? | | ?????????????????# #??## ##???????????? | | ?????????????????## ####???## ##????????????? | | ??????????????????# ##??????# | #????????????? | | ???????????????#### ##????##% #????????????? | | ?????????####### ## ###?## & #????????????? | +----------------------------------------------------+ Best States ------------- Heat Dissipation 25 Energy Generation 15 Energy Capacity 250 Matter Stores 300 Matter Capacity 300 Sight Range 16 Terrain Scan Density 10 Armor Coverage 150 Evasion (%) 42 Item Schematics ----------------- Hcp. Storage Unit | -10/Materials | Hacked Robot Schematics ------------------ None Fabricated ------------ Nothing Repaired ---------- Nothing Studied --------- None Alien Tech Used ----------------- None Achievements -------------- None Challenges ------------ None Game ------ Seed BarrageNullRegenerator Manual? 0 Play Time 00:19:34 Cumulative 128.0 hours Start 2025.10.26 @ 11:44:01 End 2025.10.26 @ 12:05:17 Sessions 1 Manual Loads 0 Difficulty Rogue Special Mode None Game No. 127 Rogue 127 Adventurer 0 Explorer 0 Win Type - Total 1 Types 1/0/0/0/0/0/0/0/0/0 Lore% 61 Gallery% 51 Achievement% 34 Wizard Run 0 Options --------- Layout 0 ASCII 0 Keyboard 0 Movement Mouse Keybinds 0 Fullscreen 2 Font 18/X11 Map View 76x50 Zoom Use 0% Tactical HUD 1 Map Filters NONE Filters NONE Steam 1 RUN: 2b8fdc8a-0c99-4e32-87e5-67b6ab6e939c